Cogmind - Beta 11 @@@ ROGUE MODE // 2022.03.20 @ 20:45:55 Player: Demise Result: Destroyed by as-14258 with Assembled Blade Performance ------------- Evolutions (0) 0 Regions Visited (4) 800 Robots Destroyed (25) 125 Value Destroyed (493) 493 Prototype IDs (5) 100 Alien Tech Used (0) 0 Bonus (89) 89 TOTAL SCORE: 1607 Bonus ------- Follower Combat Kills 102 Friendly Fire -13 Cogmind --------- Core Integrity 0/250 Matter 271/300 Energy 100/100 System Corruption 2% Temperature Cool (1) Movement Rolling (80) Location -9/Mines Parts ------- > --- POWER (1) -------- (None) > --- PROPULSION (2) --- Wheel > --- UTILITY (2) ------ Small Storage Unit Structural Scanner > --- WEAPON (2) ------- Grenade Launcher > --- INVENTORY (8) ---- Ion Engine Medium Storage Unit Light Armor Plating Light Assault Rifle Autogun Autogun Peak State ------------ > --- POWER ------------ Light Nuclear Core > --- PROPULSION ------- Wheel Wheel > --- UTILITY ---------- Small Storage Unit Structural Scanner > --- WEAPON ----------- Autogun Autogun > --- INVENTORY -------- Ion Engine Compact Wheel Medium Storage Unit Sensor Array Improved Terrain Scanner Light Assault Rifle Light Assault Rifle Mining Laser [Rating: 12] Favorites ----------- Power Light Nuclear Core Engine Ion Engine Power Core Light Nuclear Core Propulsion Wheel Wheel Wheel Utility Small Storage Unit Device Structural Scanner Storage Small Storage Unit Weapon Autogun Ballistic Gun Autogun Launcher Grenade Launcher Special Weapon Mining Laser Build | -11 -10 -10 -10 -9 ------- Run | Scr Mat Min Exi Min Slots Evolved . | . . . . . Power . | . . . . . Propulsion . | . . . . . Utility . | . . . . . Weapon . | . . . . . Parts Attached 24 | 7 13 2 . 2 Power 4 | 1 3 . . . Engine 2 | 1 1 . . . Core 2 | . 2 . . . Reactor . | . . . . . Propulsion 6 | 2 3 . . 1 Treads . | . . . . . Leg . | . . . . . Wheel 6 | 2 3 . . 1 Hover . | . . . . . Flight . | . . . . . Utility 4 | 2 2 . . . Device 3 | 1 2 . . . Storage 1 | 1 . . . . Processor . | . . . . . Hackware . | . . . . . Protection . | . . . . . Artifact . | . . . . . Weapon 10 | 2 5 2 . 1 Energy Gun . | . . . . . Energy Cannon . | . . . . . Ballistic Gun 7 | 2 4 1 . . Ballistic Cannon . | . . . . . Launcher 2 | . . 1 . 1 Special Weapon 1 | . 1 . . . Impact Weapon . | . . . . . Slashing Weapon . | . . . . . Piercing Weapon . | . . . . . Special Melee Weapon . | . . . . . Unidentified Prototypes . | . . . . . Parts Lost 7 | . 2 . . 5 Power 2 | . 1 . . 1 Propulsion 3 | . 1 . . 2 Utility . | . . . . . Weapon 2 | . . . . 2 Highest Loss Streak 5 | . 2 . . 5 To Critical Strikes . | . . . . . Average Slot Usage (%) 99 | . 98 100 100 98 Engine 2 | . 5 . . . Core 11 | . 7 14 14 14 Wheel 27 | . 27 28 28 28 Device 14 | . 14 14 14 14 Storage 14 | . 14 14 14 14 Ballistic Gun 27 | . 27 27 28 26 Naked Turns . | . . . . . Heaviest Build 17 | 14 17 17 17 17 Greatest Support 26 | 20 26 26 26 26 Greatest Overweight (x) 2 | 2 . . . 1 Average Overweight (x) . | . . . . . Largest Inventory Capacity 8 | 8 8 8 8 8 Average Capacity 7 | 7 8 8 8 8 Most Carried 8 | 5 8 8 8 8 Average Carried 7 | 2 7 8 8 7 Final Capacity 8 | 8 8 8 8 8 Final Carried 8 | 5 8 8 8 6 Class Distribution -------------------- 61% | Mutant 38% | Commander-Mutant Dominant Class ---------------- Mutant | -10/Materials Commander-Mutant | -10/Mines Commander-Mutant | -10/Exiles Mutant | -9/Mines Resources | -11 -10 -10 -10 -9 ----------- Run | Scr Mat Min Exi Min Matter Collected 808 | 330 361 96 . 21 Remotely . | . . . . . Salvage Created 699 | 121 486 65 . 27 Parts 59 | 9 38 12 . . Haulers Intercepted 1 | . 1 . . . Recyclers Shooed 1 | . 1 . . . Parts Field Recycled . | . . . . . Retrieved Matter . | . . . . . Parts Self-Destructed . | . . . . . Prevented . | . . . . . Kills | -11 -10 -10 -10 -9 ------- Run | Scr Mat Min Exi Min Combat Hostiles Destroyed 18 | . 9 6 . 3 Guns 11 | . 9 1 . 1 AOE 7 | . . 5 . 2 Classes Destroyed 8 | 2 5 . . 1 Builder 1 | . 1 . . . Tunneler 4 | 2 1 1 . . Hauler 1 | . 1 . . . Recycler 2 | 1 1 . . . Watcher 2 | . 2 . . . Swarmer 8 | . 2 6 . . Grunt 7 | . 7 . . . Assembled 3 | . . . . 3 Best Kill Streak 5 | 3 5 5 . 3 Combat Bots Only 5 | . 3 5 . 3 Max Kills in Single Turn 5 | 1 2 5 . 2 Gunslinging 1 | . 1 . . . Exploded 5 | . . 5 . 2 Melee . | . . . . . Uniques/NPCs Destroyed . | . . . . . Combat | -11 -10 -10 -10 -9 -------- Run | Scr Mat Min Exi Min Damage Taken 999 | . 542 84 . 373 Core 254 | . 160 24 . 70 Absorbed by Shields . | . . . . . Regen/Repaired (Parts) 29 | . 29 . . . Core Remaining (%) 100 | 100 . . . . Volleys Fired 71 | 15 44 7 . 5 Largest 2 | 2 2 2 . 2 Hottest 100 | 40 100 46 . 46 Shots Fired 136 | 30 84 13 . 9 Gun 129 | 30 79 12 . 8 Cannon . | . . . . . Launcher 2 | . . 1 . 1 Special 5 | . 5 . . . Kinetic 129 | 30 79 12 . 8 Thermal 5 | . 5 . . . Explosive 2 | . . 1 . 1 Electromagnetic . | . . . . . Robot Hit Streak 9 | 5 9 3 . 5 Robot Miss Streak 3 | 2 3 3 . 1 Penetration Max . | . . . . . Secondary Targets 1 | . 1 . . . Max Gunslinging Chain 1 | . 1 . . . Shots Hit Robots 90 | 19 56 8 . 7 Core Hits 39 | 6 19 8 . 6 Critical Kills . | . . . . . Critical Parts Destroyed . | . . . . . Critical Strikes . | . . . . . Melee Attacks . | . . . . . Impact . | . . . . . Slashing . | . . . . . Piercing . | . . . . . Sneak Attacks . | . . . . . Combat Hostiles . | . . . . . Follow-up Attacks . | . . . . . Damage Inflicted 1588 | 181 836 373 . 198 Guns 1228 | 181 812 110 . 125 Cannons . | . . . . . Explosions 336 | . . 263 . 73 Melee . | . . . . . Ramming . | . . . . . Kinetic 1228 | 181 812 110 . 125 Thermal 145 | . 24 121 . . Explosive 215 | . . 142 . 73 Electromagnetic . | . . . . . Impact . | . . . . . Slashing . | . . . . . Piercing . | . . . . . Highest Corruption 2 | . 1 1 1 2 Average Corruption 1 | . 1 1 1 1 Corruption Purged . | . . . . . Corruption Blocked . | . . . . . Effects 9 | . 2 4 2 1 Message Errors 4 | . 1 1 1 1 Matter Fused 2 | . . 2 . . Data Loss (major) 1 | . . 1 . . Misfires 1 | . 1 . . . Alerts 1 | . . . 1 . Overload Shots . | . . . . . Overflow Damage . | . . . . . Projectiles . | . . . . . Explosions . | . . . . . Melee . | . . . . . Knockbacks . | . . . . . Impact . | . . . . . Kinetic . | . . . . . Secondary . | . . . . . Self-Inflicted Damage . | . . . . . Shots . | . . . . . Rammed 2 | . . . . 2 Targets Rammed 2 | . . . . 2 Kicked . | . . . . . Crushed . | . . . . . Highest Temperature 96 | . 96 20 . 30 Average Temperature 21 | . 25 8 . 9 Received Heat Transfer 386 | . 246 . . 140 Siege Activations . | . . . . . Robots Corrupted . | . . . . . Combat Hostiles . | . . . . . Parts Fried . | . . . . . Impact Corruptions . | . . . . . Robots Melted . | . . . . . Combat Hostiles . | . . . . . Parts Melted . | . . . . . Heat Transferred 250 | . 50 200 . . Parts Sabotaged . | . . . . . Parts Stolen . | . . . . . Parts Stripped . | . . . . . Power Chain Reactions . | . . . . . Missiles Intercepted . | . . . . . Alert | -11 -10 -10 -10 -9 ------- Run | Scr Mat Min Exi Min Peak Influence 454 | 15 239 454 . 156 Initial 51 | . 9 51 . . Average 155 | 7 120 250 . 136 Maximum Alert Level 2 | . 1 2 . . Low Security (%) 66 | 100 78 31 . 100 Level 1 27 | . 21 52 . . Level 2 5 | . . 15 . . Level 3 . | . . . . . Level 4 . | . . . . . Level 5 . | . . . . . High Security . | . . . . . Max Security . | . . . . . Squads Dispatched 1 | . 1 . . . Investigation 1 | . 1 . . . Extermination . | . . . . . Reinforcement . | . . . . . Assault . | . . . . . Garrison . | . . . . . Intercept . | . . . . . Searches Triggered . | . . . . . Construction Impeded . | . . . . . Haulers Reinforced . | . . . . . Active Scanning Responses . | . . . . . Cargo Convoy Interrupts . | . . . . . Stealth | -11 -10 -10 -10 -9 --------- Run | Scr Mat Min Exi Min Distress Signals 1 | . . . . 1 Communications Jammed . | . . . . . Distress Signals . | . . . . . Times Spotted 39 | . 16 11 . 12 Peak Tracking Total 16 | . 4 6 . 16 Tactical Retreats 1 | . . . . 1 Traps | -11 -10 -10 -10 -9 ------- Run | Scr Mat Min Exi Min Traps Triggered . | . . . . . Indirectly . | . . . . . Trap Hack Attempts . | . . . . . Triggered . | . . . . . Disarmed . | . . . . . Reprogrammed . | . . . . . Reused . | . . . . . Traps Extracted . | . . . . . Installed . | . . . . . Triggered . | . . . . . Machines | -11 -10 -10 -10 -9 ---------- Run | Scr Mat Min Exi Min Machines Disabled 7 | . . 4 . 3 Max in Single Turn 4 | . . 4 . . Machines Sabotaged . | . . . . . Garrisons Compromised . | . . . . . Overloaded Fab Kills . | . . . . . Hacking | -11 -10 -10 -10 -9 --------- Run | Scr Mat Min Exi Min Machines Accessed 11 | . 10 . 1 . Terminals 8 | . 8 . . . Fabricators . | . . . . . Repair Stations 1 | . 1 . . . Recycling Units 1 | . 1 . . . Scanalyzers . | . . . . . Garrison Access . | . . . . . Total Hacks 38 | . 37 . 1 . Successful 28 | . 27 . 1 . Failed 10 | . 10 . . . Catastrophic . | . . . . . Database Lockouts . | . . . . . Manual 25 | . 25 . . . Terminals 30 | . 30 . . . Fabricators . | . . . . . Repair Stations 3 | . 3 . . . Recycling Units 4 | . 4 . . . Scanalyzers . | . . . . . Garrison Access . | . . . . . Terminal Hacks 12 | . 11 . 1 . Record 1 | . . . 1 . Robot Analysis 3 | . 3 . . . Prototype ID Bank 4 | . 4 . . . Terminal Index 1 | . 1 . . . Locate Traps 2 | . 2 . . . Hauler Manifests 1 | . 1 . . . Fabricator Hacks . | . . . . . Repair Station Hacks 2 | . 2 . . . Scan Component 1 | . 1 . . . Repair 1 | . 1 . . . Recycling Unit Hacks 1 | . 1 . . . Retrieve Components 1 | . 1 . . . Scanalyzer . | . . . . . Garrison Access Hacks . | . . . . . Unauthorized Hacks 13 | . 13 . . . Terminals 11 | . 11 . . . Track 1 | . 1 . . . Assimilate 2 | . 2 . . . Botnet 7 | . 7 . . . Operators 1 | . 1 . . . Fabricators . | . . . . . Repair Stations 1 | . 1 . . . Mechanics 1 | . 1 . . . Recycling Units 1 | . 1 . . . Recyclers 1 | . 1 . . . Scanalyzers . | . . . . . Garrison Access . | . . . . . Data Cores Recovered . | . . . . . Used . | . . . . . Hacking Detections 9 | . 9 . . . Full Trace Events 1 | . 1 . . . Feedback Events 1 | . 1 . . . Corruption 1 | . 1 . . . Feedback Blocked . | . . . . . Robot Schematics Acquired . | . . . . . Robots Built . | . . . . . Authchips . | . . . . . Time . | . . . . . Total Robot Build Rating . | . . . . . Part Schematics Acquired . | . . . . . Parts Built . | . . . . . Authchips . | . . . . . Time . | . . . . . Total Part Build Rating . | . . . . . Parts Repaired 1 | . 1 . . . Time 38 | . 38 . . . Parts Recycled . | . . . . . Recycled Matter . | . . . . . Retrieved Matter . | . . . . . Retrieved Components 1 | . 1 . . . Parts Scanalyzed . | . . . . . Part Schematics Acquired . | . . . . . Parts Damaged . | . . . . . Bothacking | -11 -10 -10 -10 -9 ------------ Run | Scr Mat Min Exi Min Used RIF Installer . | . . . . . Robots Hacked . | . . . . . Non-combat . | . . . . . Combat . | . . . . . Robot Hacks Applied . | . . . . . Relay Couplers Released . | . . . . . Fabnet Peak Effective % . | . . . . . Robots Rewired . | . . . . . Allies Hacked . | . . . . . Hacks Repelled . | . . . . . Allies | -11 -10 -10 -10 -9 -------- Run | Scr Mat Min Exi Min Total Allies 6 | . 2 4 . . Largest Group 5 | . 2 5 5 4 Highest-Rated Group 83 | . 20 83 83 52 Highest-Rated Ally 31 | . 10 31 31 16 Total Orders . | . . . . . Ally Attacks 20 | . . 13 . 7 Total Damage 498 | . . 153 . 345 Kills 9 | . . 6 . 3 Allies Corrupted . | . . . . . Allies Melted . | . . . . . Intel | -11 -10 -10 -10 -9 ------- Run | Scr Mat Min Exi Min Robot Analysis Total 3 | . 3 . . . Derelict Logs Recovered 1 | . . 1 . . Drone Launches . | . . . . . Drone Recoveries . | . . . . . Exploration | -11 -10 -10 -10 -9 ------------- Run | Scr Mat Min Exi Min Turns Passed 1547 | 125 664 461 163 134 Spaces Moved 1356 | 82 517 460 171 126 Core 4 | 4 . . . . Treads . | . . . . . Legs . | . . . . . Wheels 1352 | 78 517 460 171 126 Hover . | . . . . . Flight . | . . . . . Fastest Speed 50 | 50 80 90 90 90 Average Speed 87 | 82 85 90 90 90 Slowest Speed 150 | 150 90 90 90 95 Overloaded Moves . | . . . . . Propulsion Burnouts . | . . . . . Robots Hopped . | . . . . . Cave-ins Triggered . | . . . . . Exploration Rate (%) 55 | 5 89 95 59 30 Regions Visited 4 Branch Regions 3 Pre-discovered Areas 2 | . . 1 1 . Known Exits Taken . | . . . . . Unknown Exits Taken 4 | 1 1 1 1 . Scrap Searched 1 | . . 1 . . Spaces Dug . | . . . . . Terrain Destroyed 18 | . 2 9 . 7 Melee . | . . . . . Projectile 2 | . 2 . . . AOE 16 | . . 9 . 7 Terrain Rammed . | . . . . . Walls Destroyed . | . . . . . Machines Disabled . | . . . . . Actions | -11 -10 -10 -10 -9 --------- Run | Scr Mat Min Exi Min Total 1577 | 108 655 495 179 140 Wait 98 | . 57 27 9 5 Move 1352 | 81 516 459 170 126 Hop . | . . . . . Pick Up 16 | 5 11 . . . Fast Attach 10 | 7 3 . . . Attach 3 | . 1 . . 2 Detach . | . . . . . Swap 11 | . 9 2 . . Drop 14 | . 14 . . . Fire 71 | 15 44 7 . 5 Melee . | . . . . . Ram 2 | . . . . 2 Kick . | . . . . . Crush . | . . . . . Escape Stasis . | . . . . . Rewire . | . . . . . Trap . | . . . . . Miscellaneous . | . . . . . Route ------- -11/Scrapyard -10/Materials (discovered 4 exits: [*Mat x2] / [*Min x2]) -10/Mines (discovered 3 exits: [*Mat x2] / *Exi) -10/Exiles (discovered 2 exits: [*Min x2]) -9/Mines History --------- Turn | Location | Event 5 | -11/Scrapyard | Discovered new exit (range 16) 126 | -11/Scrapyard | Entered Materials 253 | -10/Materials | Discovered new exit (range 15) 303 | -10/Materials | Build established: Mutant 356 | -10/Materials | Discovered new exit (range 9) 481 | -10/Materials | Discovered new exit (range 8) 554 | -10/Materials | Core integrity fell below 50% 692 | -10/Materials | Repaired Lgt. Nuclear Core 700 | -10/Materials | Discovered new exit (range 7) 790 | -10/Materials | Entered Mines 790 | -10/Mines | Accompanied by 2 allies 820 | -10/Mines | Met a Derelict bent on vengeance 833 | -10/Mines | Assisted by bots powering up and referring to "LRC-V3" 1005 | -10/Mines | Found a hidden stash of uninstalled traps 1022 | -10/Mines | Discovered new exit (range 12) 1058 | -10/Mines | Discovered new exit (range 11) 1133 | -10/Mines | Build established: Commander-Mutant 1135 | -10/Mines | Received a Mining Laser from a helpful Derelict 1235 | -10/Mines | Deemed a non-threat by the Exiles lab entrance 1235 | -10/Mines | Discovered new exit (range 5) 1251 | -10/Mines | Entered Exiles 1251 | -10/Exiles | Accompanied by 5 allies 1265 | -10/Exiles | Discovered new exit (range 15) 1274 | -10/Exiles | Met 8R-AWN 1289 | -10/Exiles | Met EX-HEX 1333 | -10/Exiles | Met EX-DEC 1351 | -10/Exiles | Met EX-BIN 1365 | -10/Exiles | Learned location of Zion (-6) 1397 | -10/Exiles | Discovered new exit (range 10) 1414 | -10/Exiles | Entered Mines 1414 | -9/Mines | Accompanied by 4 allies 1450 | -9/Mines | Received a Rocket Launcher from a helpful Derelict 1502 | -9/Mines | Assembled infested the area 1507 | -9/Mines | Assisted by a Guerilla fighting off Assembled 1534 | -9/Mines | Core integrity fell below 20% 1548 | -9/Mines | Destroyed by as-14258 with Assembled Blade Last Messages --------------- 01502_ ALERT: Infestation in the mines, dispatching Demolisher response squad. 01506_ OJ-9BX(h): "I'll hold them off! Go on ahead or try to find another way!" 01507_ A derelict emerges from the shadows: "You need to get out of here! I've been tracking a group of Assembled to figure out where they're coming from, and they're closing on this area, come on!" 01507_ S-10 Pest destroyed. 01510_ K-01 Serf collects debris. 01512_ OJ-9BX(h) destroyed. 01514_ K-01 Serf collects debris. 01515_ Slammed into K-01 Serf. 01515_ Destabilizing: System corrupted (+1). 01516_ Slammed into K-01 Serf. 01528_ BMA8COSQ:A|AFTFAIHJAJ6GTQKT 01532_ as-86342 destroyed. 01538_ Autogun destroyed. 01540_ Com. Wheel destroyed. 01547_ as-59410 destroyed. 01547_ as-48052 destroyed. 01548_ Autogun destroyed. 01548_ Lgt. Nuclear Core destroyed. Map ----- +----------------------------------------------------+ | ????????????????????????????????????? | | ????????????????????????????????????? | | ????????????????????????????????????? | | ????????????????????????????????????? | | ????????????????????????????????????? | | #############????????????????????? | | "#############????????????????????? | | ##????????????????????? | | =% ##############????????? | | ############# ##############????????? | | ############# ##????????? | | ??????################### ##????????? | | ?????#################### ##????????? | | ????####"#"#"#####?###### ##????????? | | ????### ######### ###???????? | | ????##" ##### ## #####?????? | | ????### #### ########?? | | ????##" "### ######? | | ????##" = ##### ###? | | ###### = ###### aa ##? | | ######" "###### %% ## ##? | | ###?### a ### ###? | | ####### ###??## ###?#####? | | ######" ##???## ########?? | | ##??###"""""""####???###aa ####????? | | ##################???####@ ###????? | | ###### #########?????#### ##????? | | ] #########?????### ##????? | | ##### ###????#### ###????? | | ###### ###?##### ####????? | | ???##### ######## ###?????? | | ????######## ##### ###??????? | | ??????####### #### ###??????? | | ??????????### ## ###??????? | | ??????????## ##??????? | | ??????????## ##??????? | | ??????????## ###?????? | | ??????????## ##### ###????? | | ??????????## ####### ##????? | | ??????????### #####?### ##????? | | ??????????#########???# ###????? | | ???????????######?????? ####????? | | ?????????????????????# ####?????? | | ?????????????????????## #####??????? | | ?????????????????????########???????? | | ?????????????????????#####??????????? | | | | | | | | | +----------------------------------------------------+ Best States ------------- Heat Dissipation 25 Energy Generation 14 Energy Capacity 250 Matter Stores 300 Matter Capacity 300 Sight Range 16 Terrain Scan Density 10 Evasion (%) 44 Item Schematics ----------------- None Robot Schematics ------------------ None Fabricated ------------ Nothing Alien Tech Used ----------------- None Achievements -------------- None Challenges ------------ None Game ------ Seed UtilityThermalFacilitator Manual? 0 Play Time 00:19:11 Cumulative 464.8 hours Start 2022.03.20 @ 20:27:53 End 2022.03.20 @ 20:45:55 Sessions 1 Manual Loads 0 Difficulty Rogue Special Mode None Game No. 378 Rogue 378 Adventurer 0 Explorer 0 Win Type - Total 3 Types 2/0/0/1/0/0/0/0/0 Lore% 67 Gallery% 76 Achievement% 66 Wizard Run 0 Options --------- ASCII 0 Keyboard 1 Movement Numpad Keybinds 0 Fullscreen 1 Font 12/Terminus Map View 83x54 Tactical HUD 1 Map Filters NONE Filters NONE Steam 1 RUN: 5bd0c5b4-f004-4fd7-966f-e5a4e9cd7f47